bitfinex/quotes_SOLUSD_20241105
["timestamp","ask_amount","ask_price","bid_price","bid_amount"]
[1730845297818,4.41792798,164.97,164.93,15.11274024]
[1730845298022,6.0611,164.99,164.93,15.11274024]
[1730845298218,4.41778002,164.98,164.94,9.17523024]
[1730845298404,15.11034024,165.0,164.94,9.17523024]
[1730845298605,4.41728513,164.99,164.96,0.12549]
[1730845298823,9.04974024,165.02,164.96,9.17523024]
[1730845299028,4.41771269,165.01,164.96,9.17523024]
[1730845299235,4.41771269,165.0,164.97,9.04974024]
[1730845299408,6.34030516,165.04,164.97,9.04974024]
[1730845299409,6.0595,165.03,164.98,0.12549]
[1730845299930,6.0595,165.03,164.98,9.17523024]
[1730845300223,9.04974024,165.04,164.98,9.17523024]
[1730845300529,13.4678706,165.03,164.98,0.12549]
[1730845300730,4.41813036,165.02,164.98,0.12549]
[1730845300916,4.41813036,165.01,164.98,0.12549]
[1730845301120,9.04974024,165.03,164.98,0.12549]
[1730845301311,4.41653517,165.02,164.98,0.12549]
[1730845301508,9.04974024,165.03,164.98,21.34009]
[1730845301701,0.3014961,165.05,165.0,9.17523024]
[1730845302114,0.3014961,165.05,165.02,0.12549]
[1730845302809,0.3014961,165.05,165.03,0.12549]
[1730845303131,0.3014961,165.05,165.03,9.17523024]
[1730845303433,0.3014961,165.05,165.04,33.07760424]
[1730845304211,0.3014961,165.05,165.04,33.30309424]
[1730845304610,0.3014961,165.05,165.04,91.6875552]
[1730845305007,0.3014961,165.05,165.04,111.7875552]
[1730845305226,0.3014961,165.13,165.07,0.1]
[1730845305446,9.04974024,165.11,165.04,43.3924]
[1730845305634,9.04974024,165.1,165.05,23.776884]
[1730845305802,9.04974024,165.1,165.06,0.12549]
[1730845306137,9.04974024,165.11,165.06,0.12549]
[1730845306720,9.04974024,165.11,165.05,15.10834024]
[1730845307630,15.10634024,165.11,165.05,15.10834024]
[1730845307836,6.0566,165.11,165.06,9.04974024]
[1730845308825,6.0566,165.11,165.05,6.0586]
[1730845309030,0.3014961,165.13,165.08,9.04974024]
[1730845309212,6.3572961,165.13,165.08,9.04974024]
[1730845309631,6.3572961,165.13,165.07,9.17523024]
[1730845309821,0.3014961,165.13,165.09,9.04974024]
[1730845310404,0.3014961,165.13,165.1,9.04974024]
[1730845310910,0.3014961,165.13,165.11,9.04974024]
[1730845311815,0.3014961,165.13,165.12,9.04974024]
[1730845312215,0.3014961,165.13,165.12,9.17523024]
[1730845313315,0.3014961,165.13,165.12,15.23143024]
[1730845314626,0.3014961,165.13,165.12,39.00831424]
[1730845315829,0.3014961,165.13,165.12,39.35929424]
[1730845316044,0.3014961,165.13,165.12,59.45929424]
[1730845316831,0.3014961,165.13,165.12,102.0668552]
[1730845319116,0.3014961,165.21,165.15,0.22549]
[1730845319432,0.3014961,165.21,165.19,9.04974024]
[1730845319625,0.3014961,165.21,165.19,0.12549]
[1730845324624,0.3014961,165.21,165.19,39.13100424]
[1730845324820,15.40413634,165.21,165.16,9.04974024]
[1730845325031,15.40413634,165.21,165.15,15.10474024]
[1730845325238,15.40413634,165.21,165.16,9.17523024]
[1730845325843,15.40413634,165.21,165.14,0.1]
[1730845325844,9.04974024,165.17,165.09,9.04974024]
[1730845326020,9.04974024,165.15,165.09,9.04974024]
[1730845326558,9.04974024,165.15,165.1,6.18239]
[1730845326848,9.04974024,165.15,165.1,6.0569]
[1730845327423,14.10338674,165.15,165.11,0.12549]
[1730845327635,20.15838674,165.16,165.11,0.12549]
[1730845328525,20.15838674,165.16,165.11,6.18199]
[1730845338530,14.10338674,165.15,165.1,23.902374]
[1730845338730,20.15838674,165.16,165.1,23.902374]
[1730845338955,20.15838674,165.16,165.11,0.12549]
[1730845342974,6.055,165.16,165.11,20.28537674]
[1730845343557,20.15838674,165.16,165.11,6.18199]
[1730845347466,9.02503342,165.16,165.11,6.18199]
[1730845348567,15.07983342,165.16,165.11,6.18199]
[1730845348735,9.02503342,165.15,165.09,15.1424]
[1730845348937,9.02503342,165.13,165.06,25.16903342]
[1730845349134,9.02503342,165.13,165.08,0.12549]
[1730845349467,9.02503342,165.12,165.08,0.12549]
[1730845349769,9.02503342,165.13,165.08,0.12549]
[1730845350139,9.02503342,165.12,165.06,15.08333342]
[1730845350481,6.0554,165.14,165.05,15.1465]
[1730845350482,9.02503342,165.11,165.05,15.1465]
[1730845350665,9.02503342,165.11,165.06,0.12549]
[1730845351831,15.08173342,165.11,165.06,0.12549]
[1730845353544,15.08173342,165.11,165.05,15.1465]
[1730845354565,9.02503342,165.1,165.05,0.12549]
[1730845356955,15.08213342,165.1,165.05,0.12549]
[1730845358565,6.0571,165.1,165.05,9.15052342]
[1730845358869,15.08163342,165.11,165.06,9.02503342]
[1730845359546,9.02503342,165.11,165.07,0.12549]
[1730845360666,4.43680831,165.1,165.07,0.12549]
[1730845360863,9.02503342,165.11,165.07,0.12549]
[1730845361075,4.43688732,165.1,165.07,0.12549]
[1730845361366,9.02503342,165.11,165.07,0.12549]
[1730845361575,4.44053018,165.1,165.07,0.12549]
[1730845361756,9.02503342,165.11,165.07,0.12549]
[1730845362078,4.44043882,165.1,165.07,0.12549]
[1730845362269,9.02503342,165.11,165.07,0.12549]
[1730845362682,4.44271496,165.1,165.07,0.12549]
[1730845362973,4.44271496,165.09,165.07,0.12549]
[1730845363169,15.08153342,165.12,165.07,0.12549]
[1730845363367,4.44280687,165.11,165.07,0.12549]
[1730845363574,4.44280687,165.1,165.07,0.12549]
[1730845363866,4.44280687,165.09,165.07,0.12549]
[1730845364074,15.08153342,165.12,165.07,0.12549]
[1730845364258,4.44498345,165.11,165.07,0.12549]
[1730845364458,4.44498345,165.1,165.07,0.12549]
[1730845364658,4.44498345,165.09,165.07,0.12549]
[1730845364867,15.08153342,165.12,165.07,0.12549]
[1730845365060,10.50215274,165.11,165.07,0.12549]
[1730845365260,4.44555274,165.1,165.07,0.12549]
[1730845365979,6.0566,165.11,165.07,0.12549]
[1730845366288,4.44525985,165.1,165.07,0.12549]
[1730845366579,6.0562,165.12,165.07,15.20832342]
[1730845366867,4.44578055,165.11,165.07,15.20832342]
[1730845367071,4.44578055,165.1,165.07,15.20832342]
[1730845367256,15.08123342,165.12,165.07,6.18329]
[1730845367458,4.4458147,165.11,165.07,6.18329]
[1730845367660,4.4458147,165.1,165.07,6.18329]
[1730845367861,15.08123342,165.12,165.07,6.18329]
[1730845368062,4.44588176,165.11,165.07,6.18329]
[1730845368379,4.44588176,165.1,165.07,6.18329]
[1730845368582,15.08123342,165.12,165.07,6.18329]
[1730845368879,4.44608321,165.11,165.07,6.18329]
[1730845369181,4.44608321,165.1,165.07,6.18329]
[1730845369352,15.08123342,165.12,165.07,6.18329]
[1730845369552,4.44622907,165.11,165.07,6.18329]
[1730845369973,4.44622907,165.1,165.07,6.18329]
[1730845370179,4.44622907,165.1,165.02,16.4507]
[1730845370180,9.02503342,165.08,165.02,37.5598]
[1730845370378,4.44587125,165.07,165.02,46.58483342]
[1730845370680,9.02503342,165.08,165.03,0.12549]
[1730845370977,13.47041463,165.07,165.03,0.12549]
[1730845371180,15.08303342,165.07,165.03,0.12549]
[1730845371556,15.08303342,165.07,165.0,15.08563342]
[1730845371557,13.46917272,165.06,165.0,15.08563342]
[1730845371759,9.02503342,165.06,165.0,15.08563342]
[1730845372081,9.02503342,165.06,165.01,0.12549]
[1730845372255,9.02503342,165.05,165.01,0.12549]
[1730845372455,9.02503342,165.06,165.01,0.12549]
[1730845372678,4.44286901,165.05,165.0,15.08563342]
[1730845372882,9.02503342,165.07,165.01,9.02503342]
[1730845373181,4.44294811,165.06,165.02,0.12549]
[1730845373387,4.44294811,165.05,165.02,0.12549]
[1730845373684,15.08343342,165.06,165.01,0.12549]
[1730845373867,4.44163706,165.05,165.01,0.12549]
[1730845374071,6.0584,165.06,165.01,0.12549]
[1730845374374,4.44056627,165.05,165.01,0.12549]
[1730845374572,6.0584,165.06,165.01,0.12549]
[1730845374763,4.44035885,165.05,165.01,0.12549]
[1730845374961,6.0584,165.06,165.01,0.12549]
[1730845375162,15.08343342,165.06,165.01,0.12549]
[1730845375574,15.08413342,165.04,164.99,21.2129]
[1730845375771,15.08413342,165.04,164.99,15.1521]
[1730845376177,9.02503342,165.04,165.0,0.12549]
[1730845376482,9.02503342,165.05,165.0,0.12549]
[1730845377881,15.08383342,165.05,164.99,5.36352342]
[1730845378060,15.08383342,165.05,164.99,14.38855684]
[1730845379064,15.08383342,165.05,164.99,9.02503342]
[1730845379366,15.08383342,165.05,165.0,9.02503342]
[1730845381884,15.08383342,165.05,165.0,15.08553342]
[1730845382474,15.08383342,165.05,165.0,6.0605]
[1730845384061,20.12549,165.1,165.0,15.08553342]
[1730845384379,9.02503342,165.07,165.01,33.05289742]
[1730845384585,4.43747716,165.06,165.01,33.05289742]
[1730845384781,9.02503342,165.07,165.01,33.05289742]
[1730845384977,4.43720218,165.06,165.01,33.05289742]
[1730845385292,9.02503342,165.07,165.01,33.05289742]
[1730845385479,13.4630907,165.06,165.01,30.087764]
[1730845385682,9.02503342,165.06,165.01,30.087764]
[1730845386282,4.43808691,165.05,165.01,30.087764]
[1730845386490,9.02503342,165.06,165.01,30.087764]
[1730845389000,13.46172322,165.05,165.0,21.212]
[1730845389204,6.0585,165.06,165.01,0.12549]
[1730845389699,15.08353342,165.06,165.01,0.12549]
[1730845389889,4.43553817,165.05,165.01,0.12549]
[1730845390091,15.08353342,165.06,165.01,0.12549]
[1730845390288,4.43583132,165.05,165.01,0.12549]
[1730845390495,15.08353342,165.06,165.01,0.12549]
[1730845390679,13.46052542,165.05,165.01,0.12549]
[1730845390885,9.02503342,165.05,165.01,0.12549]
[1730845391266,9.02503342,165.04,165.01,0.12549]
[1730845391693,9.02503342,165.05,165.01,6.18569]
[1730845391897,20.0,165.08,165.01,21.33619]
[1730845392102,13.46064173,165.07,165.03,0.12549]
[1730845392397,4.43560831,165.06,165.03,0.12549]
[1730845392692,9.02503342,165.07,165.03,0.12549]
[1730845392900,4.43631935,165.06,165.03,0.12549]
[1730845393102,15.08303342,165.07,165.03,0.12549]
[1730845393397,4.43749395,165.06,165.03,0.12549]
[1730845393592,15.08303342,165.07,165.03,0.12549]
[1730845393780,4.43750414,165.06,165.03,0.12549]
[1730845393972,15.08303342,165.07,165.03,0.12549]
[1730845394173,4.43770034,165.06,165.03,0.12549]
[1730845394373,15.08303342,165.07,165.03,0.12549]
[1730845394685,4.43798721,165.06,165.03,6.18489]
[1730845394889,20.0,165.07,165.03,6.18489]
[1730845395191,4.43860782,165.06,165.03,6.18489]
[1730845395390,20.0,165.07,165.03,0.12549]
[1730845395592,13.46411327,165.06,165.01,15.1505]
[1730845395785,9.02503342,165.06,165.01,15.1505]
[1730845396800,4.43921153,165.05,165.01,0.12549]
[1730845396970,15.08363342,165.06,165.01,0.12549]
[1730845397173,4.43919133,165.05,165.01,0.12549]
[1730845397398,15.08363342,165.06,165.01,0.12549]
[1730845398170,4.44011361,165.05,165.01,0.12549]
[1730845398373,9.02503342,165.05,165.01,0.12549]
[1730845398584,4.43997887,165.04,164.99,23.902374]
[1730845398781,9.02503342,165.05,165.0,0.12549]
[1730845399102,4.43991991,165.04,165.0,0.12549]
[1730845399271,9.02503342,165.05,165.0,0.12549]
[1730845399474,4.44027897,165.04,165.0,0.12549]
[1730845399674,6.0576,165.08,165.0,0.12549]
[1730845399873,9.02503342,165.06,165.0,9.15052342]
[1730845400092,13.46532055,165.05,165.0,0.12549]
[1730845400285,4.44028713,165.04,165.0,0.12549]
[1730845400876,6.0591,165.04,165.0,0.12549]
[1730845401607,4.44098482,165.03,165.0,0.12549]
[1730845401902,15.08413342,165.04,164.98,30.23963342]
[1730845402080,4.44097819,165.03,164.99,0.12549]
[1730845402412,15.08413342,165.04,164.99,0.12549]
[1730845402579,4.44154561,165.03,164.99,0.12549]
[1730845402770,9.02503342,165.03,164.99,0.12549]
[1730845403207,6.0591,165.04,164.99,30.088764]
[1730845403376,4.44224324,165.03,164.99,30.088764]
[1730845403575,9.02503342,165.03,164.98,15.1533]
[1730845404203,9.02503342,165.02,164.95,6.1967]
[1730845404405,13.46735113,165.01,164.95,30.24343342]
[1730845404586,9.02503342,165.01,164.96,0.12549]
[1730845405099,6.0606,165.0,164.96,0.12549]
[1730845405589,9.02503342,165.01,164.96,15.21252342]
[1730845405971,15.08533342,165.01,164.96,15.21252342]
[1730845406381,15.08533342,165.01,164.96,6.18749]
[1730845407004,9.02503342,165.0,164.96,0.12549]
[1730845407607,9.02503342,164.99,164.94,6.0625]
[1730845408036,9.02503342,164.99,164.95,0.12549]
[1730845408701,9.02503342,165.0,164.95,0.12549]
[1730845408890,4.4442183,164.99,164.94,15.08753342]
[1730845409090,6.061,164.99,164.94,15.08753342]
[1730845409299,6.061,164.99,164.95,9.02503342]
[1730845410107,4.44496627,164.98,164.95,9.02503342]
[1730845410293,6.061,164.99,164.95,9.02503342]
[1730845410701,9.02503342,165.01,164.95,15.08723342]
[1730845410999,4.44438713,165.0,164.96,9.02503342]
[1730845411224,4.44438713,164.99,164.96,9.02503342]
[1730845411380,9.02503342,165.01,164.96,9.02503342]
[1730845411581,4.44476336,165.0,164.96,9.02503342]
[1730845411803,4.44476336,164.99,164.96,9.02503342]
[1730845411989,6.0606,165.0,164.96,9.02503342]
[1730845412305,4.44476807,164.99,164.96,9.02503342]
[1730845412610,6.0606,165.0,164.95,15.08723342]
[1730845412806,4.44452182,164.99,164.94,6.0627]
[1730845413113,15.08563342,165.0,164.95,9.02503342]
[1730845413413,4.44459085,164.99,164.95,9.02503342]
[1730845413588,15.08563342,165.0,164.95,9.02503342]
[1730845413786,4.44414044,164.99,164.93,24.027864]
[1730845414096,6.0611,164.99,164.95,9.02503342]
[1730845416022,4.44325501,164.98,164.95,9.02503342]
[1730845416226,6.0611,164.99,164.95,9.02503342]
[1730845416519,4.44341424,164.98,164.95,9.02503342]
[1730845416819,6.0611,164.99,164.95,9.02503342]
[1730845417522,4.44254493,164.98,164.95,9.02503342]
[1730845417718,6.0611,164.99,164.95,9.02503342]
[1730845418038,4.4424252,164.98,164.95,9.02503342]
[1730845418200,6.0611,164.99,164.95,9.02503342]
[1730845418405,4.44177288,164.98,164.95,9.02503342]
[1730845418996,4.4420467,164.97,164.95,9.02503342]
[1730845419216,6.0611,164.99,164.95,9.02503342]
[1730845419423,4.44167752,164.98,164.95,9.02503342]
[1730845419723,15.08563342,165.0,164.95,15.08733342]
[1730845420022,4.44167009,164.99,164.95,15.08733342]
[1730845420323,4.44167009,164.98,164.95,9.02503342]
[1730845420543,15.08563342,165.0,164.95,9.02503342]
[1730845420821,15.08563342,165.0,164.94,15.08763342]
[1730845420822,4.4413294,164.99,164.94,15.08763342]
[1730845421113,4.4413294,164.98,164.94,15.08763342]
[1730845421320,15.08623342,164.99,164.94,6.0626]
[1730845421493,4.44086987,164.98,164.93,21.34649]
[1730845421696,15.08623342,164.99,164.93,30.37152342]
[1730845421914,4.44080571,164.98,164.93,30.37152342]
[1730845422125,15.08623342,164.99,164.93,30.37152342]
[1730845422322,4.44124286,164.98,164.93,30.37152342]
[1730845422527,15.08623342,164.99,164.93,30.37152342]
[1730845422731,10.50227654,164.98,164.93,30.37152342]
[1730845423040,6.0616,164.98,164.93,30.37152342]
[1730845423408,6.0616,164.98,164.93,24.30842342]
[1730845423608,6.0616,164.98,164.93,30.37152342]
[1730845424029,15.08663342,164.98,164.93,15.28339]
[1730845424208,4.44126132,164.97,164.93,15.28339]
[1730845424409,15.08663342,164.98,164.93,15.28339]
[1730845424731,4.44095438,164.97,164.93,15.28339]
[1730845424931,15.08663342,164.98,164.93,15.28339]
[1730845425114,4.44164676,164.97,164.93,15.28339]
[1730845425310,15.08663342,164.98,164.93,24.30842342]
[1730845425515,4.44127307,164.97,164.93,24.30842342]
[1730845425828,9.02503342,164.97,164.93,15.28339]
[1730845426121,15.08663342,164.98,164.93,30.37152342]
[1730845426339,4.44185345,164.97,164.93,30.37152342]
[1730845426504,15.08663342,164.98,164.93,30.37152342]
[1730845426706,4.44143759,164.97,164.93,30.37152342]
[1730845426905,15.08663342,164.98,164.93,30.37152342]
[1730845427113,4.44140099,164.97,164.93,30.37152342]
[1730845427427,15.08663342,164.98,164.93,30.37152342]
[1730845427627,4.44200427,164.97,164.93,30.37152342]
[1730845427832,15.08663342,164.98,164.93,30.37152342]
[1730845428002,4.44204192,164.97,164.93,30.37152342]
[1730845428207,15.08663342,164.98,164.93,30.37152342]
[1730845428432,4.44284422,164.97,164.93,30.37152342]
[1730845428612,15.08663342,164.98,164.93,30.37152342]
[1730845428808,4.44284422,164.97,164.93,30.37152342]
[1730845429131,4.44404016,164.96,164.93,30.37152342]
[1730845429313,15.08663342,164.98,164.93,30.37152342]
[1730845429519,4.44375306,164.97,164.93,30.37152342]
[1730845429722,15.08663342,164.98,164.93,30.37152342]
[1730845430018,4.44371825,164.97,164.93,30.37152342]
[1730845430225,4.44371825,164.96,164.93,30.37152342]
[1730845430521,15.08663342,164.98,164.93,30.37152342]
[1730845430723,4.44492513,164.97,164.93,30.37152342]
[1730845430934,4.44492513,164.96,164.93,30.37152342]
[1730845431134,15.08663342,164.98,164.93,30.37152342]
[1730845431432,4.44507643,164.97,164.93,30.37152342]
[1730845431636,4.44507643,164.96,164.93,30.37152342]
[1730845431811,15.08663342,164.98,164.93,30.37152342]
[1730845432011,4.44506071,164.97,164.93,30.37152342]
[1730845432234,4.44506071,164.96,164.93,30.37152342]
[1730845432439,15.08663342,164.98,164.93,30.37152342]
[1730845432630,4.44502334,164.97,164.93,30.37152342]
[1730845432831,4.44502334,164.96,164.93,30.37152342]
[1730845433017,15.08663342,164.98,164.93,30.37152342]
[1730845433218,4.44513111,164.97,164.93,30.37152342]
[1730845433411,4.44513111,164.96,164.93,30.37152342]
[1730845433717,15.08663342,164.98,164.93,30.37152342]
[1730845433924,4.44487027,164.97,164.93,30.37152342]
[1730845434123,4.44487027,164.96,164.93,30.37152342]
[1730845434323,6.0616,164.98,164.93,30.37152342]
[1730845434534,4.44476333,164.97,164.93,30.37152342]
[1730845434718,4.44476333,164.96,164.93,30.37152342]
[1730845434918,35.1494,165.03,164.93,30.37152342]
[1730845435236,9.02503342,164.99,164.93,30.37152342]
[1730845435429,4.44478341,164.98,164.93,30.37152342]
[1730845435734,4.44478341,164.97,164.93,30.37152342]
[1730845436036,4.44478341,164.96,164.93,30.37152342]
[1730845436244,6.0613,164.98,164.93,30.37152342]
[1730845436412,4.44436453,164.97,164.93,30.37152342]
[1730845436613,4.44436453,164.96,164.94,9.02503342]
[1730845436826,6.0613,164.98,164.94,9.02503342]
[1730845437135,4.44460429,164.97,164.94,9.02503342]
[1730845437340,29.02503342,164.99,164.94,9.02503342]
[1730845437639,4.4444506,164.98,164.94,9.02503342]
[1730845437841,4.4444506,164.97,164.93,30.37152342]
[1730845438047,4.4444506,164.96,164.93,30.37152342]
[1730845438209,29.02503342,164.99,164.93,30.37152342]
[1730845438210,29.02503342,164.99,164.93,21.34649]
[1730845438539,4.44431052,164.98,164.94,9.02503342]
[1730845438838,4.44431052,164.97,164.94,9.02503342]
[1730845439030,4.44431052,164.96,164.94,9.02503342]
[1730845439232,35.08613342,164.99,164.94,9.02503342]
[1730845439440,10.50546671,164.98,164.94,9.02503342]
[1730845439940,4.44416671,164.97,164.94,9.02503342]
[1730845440149,4.44416671,164.96,164.94,9.02503342]
[1730845440444,6.0613,164.98,164.94,9.02503342]
[1730845440737,4.44419747,164.97,164.94,9.02503342]
[1730845440923,4.44419747,164.96,164.94,9.02503342]
[1730845441124,6.0613,164.98,164.94,9.02503342]
[1730845441340,4.44420399,164.97,164.93,30.37152342]
[1730845441545,4.44420399,164.96,164.93,30.37152342]
[1730845441842,6.0613,164.98,164.93,30.37152342]
[1730845442043,4.44420442,164.97,164.93,30.37152342]
[1730845442336,4.44420442,164.96,164.93,30.37152342]
[1730845442537,6.0613,164.98,164.93,30.37152342]
[1730845442743,4.44411406,164.97,164.93,30.37152342]
[1730845442913,4.44411406,164.96,164.93,30.37152342]
[1730845443109,4.44411406,164.95,164.93,30.37152342]
[1730845443309,6.0613,164.98,164.93,30.37152342]
[1730845443521,4.44325878,164.97,164.93,30.37152342]
[1730845443735,4.44325878,164.96,164.93,30.37152342]
[1730845444042,4.44325878,164.95,164.93,30.37152342]
[1730845444220,6.0613,164.98,164.93,30.37152342]
[1730845444423,4.44299528,164.97,164.95,0.12549]
[1730845444624,4.44299528,164.96,164.95,0.12549]
[1730845444851,4.44299528,164.97,164.95,0.12549]
[1730845449421,4.44299528,164.96,164.95,0.12549]
[1730845449645,4.44299528,164.97,164.95,0.12549]
[1730845449831,4.44299528,164.96,164.95,0.12549]
[1730845450027,4.44299528,164.97,164.95,0.12549]
[1730845450234,4.44299528,164.96,164.95,0.12549]
[1730845450425,4.44299528,164.97,164.95,0.12549]
[1730845450625,4.44299528,164.96,164.95,0.12549]
[1730845451145,4.44299528,164.97,164.95,0.12549]
[1730845451347,4.44299528,164.96,164.95,0.12549]
[1730845451929,6.0613,164.98,164.95,0.12549]
[1730845451930,4.44299528,164.97,164.95,0.12549]
[1730845452152,4.44299528,164.96,164.95,0.12549]
[1730845452363,4.44299528,164.97,164.95,0.12549]
[1730845452559,4.44299528,164.96,164.95,0.12549]
[1730845452849,4.44299528,164.97,164.95,0.12549]
[1730845453157,4.44299528,164.96,164.94,21.527864]
[1730845453341,4.44299528,164.95,164.94,21.527864]
[1730845453650,4.44299528,164.97,164.94,21.527864]
[1730845453947,4.44299528,164.96,164.94,21.527864]
[1730845454259,4.44299528,164.95,164.94,21.527864]
[1730845454428,4.44299528,164.97,164.94,21.527864]
[1730845454629,4.44299528,164.96,164.94,21.527864]
[1730845454955,4.44299528,164.95,164.94,21.527864]
[1730845455142,4.44299528,164.97,164.94,21.527864]
[1730845455451,4.44299528,164.96,164.95,0.12549]
[1730845457554,4.45097687,164.96,164.95,0.12549]
[1730845458071,4.45095335,164.96,164.95,0.12549]
[1730845460062,10.51295335,164.96,164.92,0.3014961]
[1730845460351,4.45095335,164.95,164.93,0.12549]
[1730845460549,4.45095335,164.94,164.93,0.12549]
[1730845460756,4.45095335,164.94,164.93,23.902374]
[1730845461057,6.0618,164.97,164.93,23.902374]
[1730845461258,4.45395369,164.96,164.93,23.902374]
[1730845461445,4.45395369,164.95,164.93,23.902374]
[1730845461758,4.45395369,164.94,164.93,0.12549]
[1730845471156,4.45395369,164.94,164.92,0.3014961]
[1730845471365,4.45395369,164.93,164.92,0.3014961]
[1730845471865,6.0625,164.95,164.92,0.3014961]
[1730845472033,4.46120428,164.94,164.92,0.3014961]
[1730845472237,4.46120428,164.93,164.92,0.3014961]
[1730845474852,4.46120428,164.93,164.92,39.54338352]
[1730845475364,6.0616,164.98,164.93,23.902374]
[1730845475552,4.46046342,164.97,164.93,23.902374]
[1730845475760,4.46046342,164.96,164.93,23.902374]
[1730845475960,4.46046342,164.95,164.93,23.902374]
[1730845476151,4.46046342,164.94,164.93,23.902374]
[1730845478869,4.46046342,164.94,164.93,29.965474]
[1730845481274,6.0616,164.98,164.93,29.965474]
[1730845481467,4.46176194,164.97,164.93,29.965474]
[1730845481662,4.46176194,164.96,164.93,29.965474]
[1730845481973,4.46176194,164.95,164.93,29.965474]
[1730845482172,4.46176194,164.94,164.93,29.965474]
[1730845482380,6.0617,164.97,164.93,29.965474]
[1730845482567,4.46193857,164.96,164.93,29.965474]
[1730845482745,4.46193857,164.95,164.93,29.965474]
[1730845482948,4.46193857,164.94,164.93,29.965474]
[1730845483173,4.46193857,164.94,164.93,39.24148742]
[1730845484780,4.46193857,164.94,164.93,30.216454]
[1730845487775,4.46193857,164.94,164.93,60.36848742]
[1730845487987,15.1793,165.06,164.93,60.36848742]
[1730845487988,6.0587,165.05,164.95,0.22549]
[1730845488279,6.0587,165.05,164.98,9.15052342]
[1730845488453,6.0587,165.05,164.99,23.776884]
[1730845488652,9.02503342,165.04,165.0,0.12549]
[1730845489148,6.0594,165.04,165.0,0.12549]
[1730845489348,15.08443342,165.04,165.0,0.12549]
[1730845492851,9.02503342,165.03,165.0,0.12549]
[1730845493151,9.02503342,165.01,164.95,6.0622]
[1730845493354,9.02503342,165.01,164.95,15.08723342]
[1730845494068,9.02503342,165.01,164.96,0.12549]
[1730845494381,15.08493342,165.02,164.98,0.12549]
[1730845495464,9.02503342,165.03,164.98,0.12549]
[1730845495665,9.02503342,165.03,164.98,6.18659]
[1730845496181,20.0,165.04,164.98,15.21162342]
[1730845496390,29.02503342,165.04,165.0,0.12549]
[1730845498567,35.08433342,165.04,165.0,0.12549]
[1730845499957,4.45103506,165.03,165.0,0.12549]
[1730845500160,4.451226,165.02,165.0,0.12549]
[1730845500357,4.451226,165.02,164.98,15.1533]
[1730845500358,13.47625942,165.01,164.98,15.1533]
[1730845500662,4.451226,165.0,164.98,15.1533]
[1730845500880,20.0,164.98,164.85,1.04951094]
[1730845501083,9.02503342,164.93,164.88,6.0649]
[1730845501274,13.47625942,164.93,164.88,6.0649]
[1730845502064,4.44898045,164.93,164.88,6.0649]
[1730845503093,9.02503342,164.93,164.88,6.0649]
[1730845503257,9.02503342,164.94,164.88,6.0649]
[1730845503659,4.44881005,164.93,164.88,6.0649]
[1730845505260,13.47384347,164.93,164.88,6.0649]
[1730845505460,13.47384347,164.93,164.86,9.02503342]
[1730845505656,19.53694347,164.93,164.87,6.0652]
[1730845508191,19.53694347,164.93,164.88,6.0649]
[1730845509197,32.05205542,164.93,164.86,6.0654]
[1730845511785,32.04660078,164.93,164.86,6.0654]
[1730845512094,32.04660078,164.93,164.87,6.0653]
[1730845515268,32.04469832,164.93,164.87,6.0653]
[1730845516089,32.04430568,164.93,164.87,6.0653]
[1730845516569,4.44106031,164.93,164.89,6.0646]
[1730845516769,13.46609373,164.93,164.89,6.0646]
[1730845517283,19.52919373,164.93,164.88,6.0649]
[1730845522472,15.08813342,164.93,164.88,6.0649]
[1730845522670,19.52824577,164.93,164.88,6.0649]
[1730845525002,4.44011235,164.93,164.9,21.2246]
[1730845525303,13.46514577,164.93,164.9,15.1605]
[1730845526292,9.02503342,164.93,164.9,15.1605]
[1730845526495,13.46589309,164.93,164.9,15.1605]
[1730845528379,13.46589309,164.93,164.87,9.02503342]
[1730845528585,13.46589309,164.93,164.89,6.0646]
[1730845529510,9.02503342,164.93,164.89,6.0646]
[1730845529806,13.46487281,164.93,164.89,6.0646]
[1730845531712,4.43983939,164.93,164.91,6.0637]
[1730845532004,6.0621,164.96,164.91,6.0637]
[1730845532203,13.4646599,164.95,164.91,6.0637]
[1730845532405,4.43962648,164.94,164.91,6.0637]
[1730845532607,9.02503342,164.95,164.91,23.776884]
[1730845533134,4.43951473,164.94,164.91,23.776884]
[1730845533309,9.02503342,164.95,164.91,23.776884]
[1730845533484,4.4390908,164.94,164.91,29.840384]
[1730845533689,9.02503342,164.95,164.91,29.840384]
[1730845534014,4.43904166,164.94,164.91,29.840384]
[1730845534220,9.02503342,164.95,164.91,29.840384]
[1730845534407,13.46394652,164.94,164.91,29.840384]
[1730845534608,9.02503342,164.94,164.91,29.840384]